fUSD/lending_fUSD_20240524
["ID","MTS","AMOUNT","RATE_DAILY","PERIOD"]
[327832313,1716528648127,-500.0,0.00033698,6]
[327832314,1716528648138,-433.390448,0.00033698,6]
[327832315,1716528648147,-531.2753051,0.00033698,6]
[327832316,1716528648157,-500.0,0.00033698,6]
[327832317,1716528648167,-500.0,0.00033698,6]
[327832318,1716528648177,-500.0,0.00033698,6]
[327832319,1716528648187,-523.01070946,0.00033698,6]
[327832320,1716528648197,-529.15907418,0.00033698,6]
[327832321,1716528648207,-500.0,0.00033698,6]
[327832322,1716528648216,-500.0,0.00033698,6]
[327832323,1716528648226,-500.0,0.00033698,6]
[327832324,1716528648236,-543.75130898,0.00033698,6]
[327832325,1716528648246,-500.0,0.00033698,6]
[327832326,1716528648256,-520.2481164,0.00033698,6]
[327832327,1716528648265,-417.29442119,0.00033698,6]
[327832328,1716528648275,-537.10309629,0.00033698,6]
[327832329,1716528648284,-525.98268916,0.00033698,6]
[327832330,1716528648294,-500.0,0.00033698,6]
[327832331,1716528648304,-500.0,0.00033698,6]
[327832332,1716528648314,-500.0,0.00033698,6]
[327832333,1716528648324,-500.0,0.00033698,6]
[327832334,1716528648335,-500.0,0.00033698,6]
[327832335,1716528648344,-500.0,0.00033698,6]
[327832336,1716528648354,-500.0,0.00033698,6]
[327832337,1716528648364,-500.0,0.00033698,6]
[327832338,1716528648376,-500.0,0.00033698,6]
[327832339,1716528648386,-500.0,0.00033698,6]
[327832340,1716528648395,-546.11256089,0.00033698,6]
[327832341,1716528648405,-500.0,0.00033698,6]
[327832342,1716528648414,-537.47218311,0.00033698,6]
[327832343,1716528648424,-500.0,0.00033698,6]
[327832344,1716528648435,-500.0,0.00033698,6]
[327832345,1716528648444,-500.0,0.00033698,6]
[327832346,1716528648454,-500.0,0.00033698,6]
[327832347,1716528648464,-500.0,0.00033698,6]
[327832348,1716528648474,-500.0,0.00033698,6]
[327832349,1716528648484,-521.51601959,0.00033698,6]
[327832350,1716528648493,-500.0,0.00033698,6]
[327832351,1716528648503,-500.0,0.00033698,6]
[327832352,1716528648513,-500.0,0.00033698,6]
[327832353,1716528648523,-249.61109467,0.00033698,6]
[327832354,1716528648653,-634.60198297,0.00033698,6]
[327832355,1716528648664,-500.0,0.00033698,6]
[327832356,1716528648673,-528.90467641,0.00033698,6]
[327832357,1716528648682,-500.0,0.00033698,6]
[327832358,1716528648691,-500.0,0.00033698,6]
[327832359,1716528648700,-529.49877745,0.00033698,6]
[327832360,1716528648709,-500.0,0.00033698,6]
[327832361,1716528648719,-500.0,0.00033698,6]
[327832362,1716528648728,-500.0,0.00033698,6]
[327832363,1716528648738,-500.0,0.00033698,6]
[327832364,1716528648747,-500.0,0.00033698,6]
[327832365,1716528648757,-500.0,0.00033698,6]
[327832366,1716528648766,-500.0,0.00033698,6]
[327832367,1716528648775,-500.0,0.00033698,6]
[327832368,1716528648784,-500.0,0.00033698,6]
[327832369,1716528648794,-500.0,0.00033698,6]
[327832370,1716528648803,-525.37397844,0.00033698,6]
[327832371,1716528648812,-298.01700244,0.00033698,6]
[327832372,1716528648821,-500.0,0.00033698,2]
[327832373,1716528648830,-500.0,0.00033698,2]
[327832374,1716528648839,-500.0,0.00033698,2]
[327832375,1716528648848,-501.73899977,0.00033698,2]
[327832376,1716528648858,-500.0,0.00033698,6]
[327832377,1716528648867,-500.0,0.00033698,6]
[327832378,1716528648879,-500.0,0.00033698,6]
[327832379,1716528648888,-500.0,0.00033698,6]
[327832380,1716528648898,-500.0,0.00033698,6]
[327832381,1716528648908,-492.82533454,0.00033698,6]
[327832382,1716528648917,-500.0,0.00033698,6]
[327832383,1716528648926,-500.0,0.00033698,6]
[327832384,1716528648935,-500.0,0.00033698,6]
[327832385,1716528648944,-500.0,0.00033698,6]
[327832386,1716528648954,-500.0,0.00033698,6]
[327832387,1716528648964,-184.34374666,0.00033698,6]
[327832388,1716528648974,-500.0,0.00033698,6]
[327832389,1716528648983,-375.02380383,0.00033698,6]
[327832390,1716528648993,-500.0,0.00033698,6]
[327832391,1716528649004,-500.0,0.00033698,6]
[327832392,1716528649014,-500.0,0.00033698,6]
[327832393,1716528649024,-500.0,0.00033698,6]
[327832394,1716528649033,-500.0,0.00033698,6]
[327832395,1716528649044,-500.0,0.00033698,6]
[327832396,1716528649054,-500.0,0.00033698,6]
[327832397,1716528649063,-500.0,0.00033698,6]
[327832398,1716528649072,-500.0,0.00033698,6]
[327832399,1716528649082,-500.0,0.00033698,6]
[327832400,1716528649091,-500.0,0.00033698,6]
[327832401,1716528649101,-500.0,0.00033698,6]
[327832402,1716528649111,-412.47729124,0.00033698,6]
[327832403,1716528649120,-500.0,0.00033698,6]
[327832404,1716528649132,-500.0,0.00033698,6]
[327832405,1716528649142,-500.0,0.00033698,6]
[327832406,1716528649151,-500.0,0.00033698,6]
[327832407,1716528649161,-500.0,0.00033698,6]
[327832408,1716528649171,-500.0,0.00033698,6]
[327832409,1716528649180,-500.0,0.00033698,6]
[327832410,1716528649190,-500.0,0.00033698,6]
[327832411,1716528649199,-500.0,0.00033698,6]
[327832412,1716528649210,-500.0,0.00033698,6]
[327832413,1716528649219,-219.35680141,0.00033698,6]
[327832414,1716528649229,-500.0,0.00033698,6]
[327832415,1716528649238,-500.0,0.00033698,6]
[327832416,1716528649248,-500.0,0.00033698,6]
[327832417,1716528649258,-500.0,0.00033698,6]
[327832418,1716528649267,-500.0,0.00033698,6]
[327832419,1716528649277,-500.0,0.00033698,6]
[327832420,1716528649287,-500.0,0.00033698,6]
[327832421,1716528649296,-500.0,0.00033698,6]
[327832422,1716528649305,-500.0,0.00033698,6]
[327832423,1716528649315,-500.0,0.00033698,6]
[327832424,1716528649324,-214.33912977,0.00033698,6]
[327832425,1716528649334,-628.3,0.00033698,6]
[327832426,1716528649343,-500.0,0.00033698,6]
[327832427,1716528649352,-500.0,0.00033698,6]
[327832428,1716528649361,-500.0,0.00033698,6]
[327832429,1716528649372,-500.0,0.00033698,6]
[327832430,1716528649383,-222.99941327,0.00033698,6]
[327832431,1716528649392,-500.0,0.00033698,6]
[327832432,1716528649402,-500.0,0.00033698,6]
[327832433,1716528649411,-500.0,0.00033698,6]
[327832434,1716528649420,-500.0,0.00033698,6]
[327832435,1716528649430,-557.70829809,0.00033698,6]
[327832436,1716528649439,-517.85247395,0.00033698,6]
[327832437,1716528649449,-500.0,0.00033698,6]
[327832438,1716528649458,-500.0,0.00033698,6]
[327832439,1716528649467,-500.0,0.00033698,6]
[327832440,1716528649477,-254.2160131,0.00033698,6]
[327832441,1716528649486,-500.0,0.00033698,6]
[327832442,1716528649495,-2081.70535037,0.00033698,2]
[327832443,1716528649504,-500.0,0.00033698,6]
[327832444,1716528649514,-500.0,0.00033698,6]
[327832445,1716528649523,-500.0,0.00033698,6]
[327832446,1716528649532,-500.0,0.00033698,6]
[327832447,1716528649542,-500.0,0.00033698,6]
[327832448,1716528649551,-500.0,0.00033698,6]
[327832449,1716528649560,-500.0,0.00033698,6]
[327832450,1716528649569,-500.0,0.00033698,6]
[327832451,1716528649579,-500.0,0.00033698,6]
[327832452,1716528649588,-500.0,0.00033698,6]
[327832453,1716528649597,-500.0,0.00033698,6]
[327832454,1716528649606,-500.0,0.00033698,6]
[327832455,1716528649615,-500.0,0.00033698,6]
[327832456,1716528649625,-500.0,0.00033698,6]
[327832457,1716528649634,-500.0,0.00033698,6]
[327832458,1716528649643,-500.0,0.00033698,6]
[327832459,1716528649652,-500.0,0.00033698,6]
[327832460,1716528649662,-500.0,0.00033698,6]
[327832461,1716528649671,-500.0,0.00033698,6]
[327832462,1716528649680,-500.0,0.00033698,6]
[327832463,1716528649689,-500.0,0.00033698,6]
[327832464,1716528649698,-394.69785186,0.00033698,6]
[327832465,1716528649707,-500.0,0.00033698,6]
[327832467,1716528649715,-500.0,0.00033698,6]
[327832468,1716528649724,-519.85792575,0.00033698,6]
[327832469,1716528649733,-500.0,0.00033698,6]
[327832470,1716528649742,-500.0,0.00033698,6]
[327832471,1716528649751,-500.0,0.00033698,6]
[327832472,1716528649760,-500.0,0.00033698,6]
[327832473,1716528649769,-517.9260392,0.00033698,6]
[327832474,1716528649778,-500.0,0.00033698,6]
[327832475,1716528649787,-512.67072385,0.00033698,6]
[327832476,1716528649797,-500.0,0.00033698,6]
[327832477,1716528649806,-500.0,0.00033698,6]
[327832478,1716528649815,-500.0,0.00033698,6]
[327832479,1716528649825,-584.92,0.00033698,6]
[327832480,1716528649834,-507.85068827,0.00033698,6]
[327832481,1716528649843,-500.0,0.00033698,6]
[327832482,1716528649853,-500.0,0.00033698,6]
[327832483,1716528649862,-500.0,0.00033698,6]
[327832484,1716528649872,-500.0,0.00033698,6]
[327832485,1716528649883,-500.0,0.00033698,6]
[327832486,1716528649892,-521.29043591,0.00033698,6]
[327832487,1716528649903,-500.0,0.00033698,6]
[327832488,1716528649913,-500.0,0.00033698,6]
[327832489,1716528649923,-500.0,0.00033698,6]
[327832490,1716528649933,-500.0,0.00033698,6]
[327832491,1716528649942,-500.0,0.00033698,6]
[327832492,1716528649952,-500.0,0.00033698,6]
[327832493,1716528649962,-500.0,0.00033698,6]
[327832494,1716528649976,-187.6,0.00033698,6]
[327832495,1716528649986,-500.0,0.00033698,6]
[327832496,1716528649995,-500.0,0.00033698,6]
[327832497,1716528650007,-500.0,0.00033698,6]
[327832498,1716528650016,-500.0,0.00033698,6]
[327832499,1716528650026,-382.22787251,0.00033698,6]
[327832500,1716528650035,-500.0,0.00033698,6]
[327832501,1716528650045,-500.0,0.00033698,6]
[327832502,1716528650055,-500.0,0.00033698,6]
[327832503,1716528650064,-212.16,0.00033698,6]
[327832504,1716528650074,-500.0,0.00033698,6]
[327832505,1716528650084,-500.0,0.00033698,6]
[327832506,1716528650093,-500.0,0.00033698,6]
[327832507,1716528650102,-500.0,0.00033698,6]
[327832508,1716528650112,-472.0,0.00033698,6]
[327832509,1716528650122,-500.0,0.00033698,6]
[327832510,1716528650135,-500.0,0.00033698,6]
[327832511,1716528650144,-500.0,0.00033698,6]
[327832512,1716528650154,-528.06646344,0.00033698,6]
[327832513,1716528650164,-500.0,0.00033698,6]
[327832514,1716528650173,-500.0,0.00033698,6]
[327832515,1716528650182,-637.81840885,0.00033698,6]
[327832516,1716528650191,-500.0,0.00033698,6]
[327832517,1716528650201,-500.0,0.00033698,6]
[327832518,1716528650211,-215.16,0.00033698,6]
[327832519,1716528650220,-500.0,0.00033698,6]
[327832520,1716528650230,-500.0,0.00033698,2]
[327832521,1716528650240,-500.65138774,0.00033698,2]
[327832522,1716528650250,-500.0,0.00033698,6]
[327832523,1716528650260,-198.40652267,0.00033698,6]
[327832524,1716528650270,-500.0,0.00033698,6]
[327832525,1716528650279,-500.0,0.00033698,6]
[327832526,1716528650289,-500.0,0.00033698,6]
[327832527,1716528650299,-500.0,0.00033698,6]
[327832528,1716528650309,-500.0,0.00033698,6]
[327832529,1716528650318,-500.0,0.00033698,6]
[327832530,1716528650328,-500.0,0.00033698,6]
[327832531,1716528650337,-500.0,0.00033698,6]
[327832532,1716528650347,-500.0,0.00033698,6]
[327832533,1716528650356,-500.0,0.00033698,6]
[327832534,1716528650366,-222.56581189,0.00033698,6]
[327832535,1716528650376,-500.0,0.00033698,6]
[327832536,1716528650386,-500.0,0.00033698,6]
[327832537,1716528650395,-500.0,0.00033698,6]
[327832538,1716528650404,-500.0,0.00033698,6]
[327832539,1716528650413,-500.0,0.00033698,6]
[327832540,1716528650423,-499.48,0.00033698,6]
[327832541,1716528650433,-500.0,0.00033698,6]
[327832542,1716528650443,-500.0,0.00033698,6]
[327832543,1716528650453,-500.0,0.00033698,6]
[327832544,1716528650463,-500.0,0.00033698,6]
[327832545,1716528650472,-500.0,0.00033698,6]
[327832546,1716528650482,-500.0,0.00033698,6]
[327832547,1716528650491,-500.0,0.00033698,6]
[327832548,1716528650501,-616.48923208,0.00033698,6]
[327832549,1716528650510,-418.57682495,0.00033698,6]
[327832550,1716528650519,-500.0,0.00033698,6]
[327832551,1716528650529,-500.0,0.00033698,6]
[327832552,1716528650539,-500.0,0.00033698,6]
[327832553,1716528650549,-516.2459904,0.00033698,6]
[327832554,1716528650558,-429.44452788,0.00033698,6]
[327832555,1716528650567,-500.0,0.00033698,6]
[327832556,1716528650577,-329.05746178,0.00033698,6]
[327832557,1716528650884,-231.72479767,0.00033698,6]
[327832558,1716528650899,-523.04,0.00033698,6]
[327832559,1716528650913,-618.16,0.00033698,6]
[327832560,1716528650923,-618.16,0.00033698,6]
[327832561,1716528650932,-500.0,0.00033698,6]
[327832562,1716528650941,-500.0,0.00033698,6]
[327832563,1716528650951,-618.16,0.00033698,6]
[327832564,1716528650960,-500.0,0.00033698,6]
[327832565,1716528650974,-369.69552332,0.00033698,6]
[327832566,1716528650983,-500.0,0.00033698,6]
[327832567,1716528650992,-618.16,0.00033698,6]
[327832568,1716528651002,-500.0,0.00033698,6]
[327832569,1716528651014,-618.16,0.00033698,6]
[327832570,1716528651023,-524.63089111,0.00033698,6]
[327832571,1716528651033,-618.16,0.00033698,6]
[327832572,1716528651043,-618.16,0.00033698,6]
[327832573,1716528651053,-618.16,0.00033698,6]
[327832574,1716528651063,-618.16,0.00033698,6]
[327832575,1716528651072,-618.16,0.00033698,6]
[327832576,1716528651081,-500.0,0.00033698,6]
[327832577,1716528651091,-618.16,0.00033698,6]
[327832578,1716528651100,-500.0,0.00033698,6]
[327832579,1716528651110,-618.16,0.00033698,6]
[327832580,1716528651119,-500.0,0.00033698,6]
[327832581,1716528651130,-618.16,0.00033698,6]
[327832582,1716528651140,-500.0,0.00033698,6]
[327832583,1716528651149,-618.16,0.00033698,6]
[327832584,1716528651158,-447.97460591,0.00033698,6]
[327832585,1716528651167,-500.0,0.00033698,6]
[327832586,1716528651177,-500.0,0.00033698,6]
[327832587,1716528651186,-500.0,0.00033698,6]
[327832588,1716528651196,-500.0,0.00033698,6]
[327832589,1716528651205,-500.0,0.00033698,6]
[327832590,1716528651214,-500.0,0.00033698,6]
[327832591,1716528651224,-500.0,0.00033698,6]
[327832592,1716528651233,-133.69418199,0.00033698,6]
[327832593,1716528651252,-366.30581801,0.00033698,6]
[327832594,1716528651261,-500.0,0.00033698,6]
[327832595,1716528651270,-5.24692589,0.00033698,6]
[327832596,1716528651282,-485.80288671,0.00033698,6]
[327832597,1716528652115,-439.50370442,8.007e-05,2]
[327832598,1716528652127,-771.07115909,8.007e-05,2]
[327832599,1716528652139,-882.06164822,8.007e-05,2]
[327832600,1716528652151,-95.38629892,8.007e-05,2]
[327832601,1716528652160,-299.84501484,8.007e-05,2]
[327832602,1716528652172,-880.51173416,8.007e-05,2]
[327832603,1716528652181,-207.58824107,8.007e-05,2]
[327832604,1716528652190,-1298.78853938,8.007e-05,2]
[327832605,1716528652199,-155.0,8.007e-05,2]
[327832606,1716528652208,-1054.46148539,8.008e-05,2]
[327832607,1716528652219,-1726.98413778,8.008e-05,2]
[327832608,1716528652238,-1284.56821041,8.008e-05,2]
[327832609,1716528652249,-1093.48391826,8.008e-05,2]
[327832610,1716528652261,-1985.73265892,8.008e-05,2]
[327832611,1716528652272,-290.4241791,8.008e-05,2]
[327832612,1716528652283,-11780.0411589,8.008e-05,2]
[327832613,1716528652294,-291.38138464,8.008e-05,2]
[327832614,1716528652304,-1405.654,0.00026572,2]
[327832615,1716528652313,-1401.0,0.00029572,2]
[327832616,1716528652322,-8.9501874,0.00033698,6]
[327832617,1716528652332,-297.77316075,0.00033698,6]
[327832618,1716528652343,-341.92104159,0.00033698,6]
[327832619,1716528652353,-368.21760617,0.00033698,6]
[327832620,1716528652365,-131.78239383,0.00033698,6]
[327832621,1716528652374,-148.73760617,0.00033698,6]
[327832622,1716528652651,-351.26239383,0.00033698,6]
[327832623,1716528652660,-614.33770098,0.00033698,6]
[327832624,1716528652669,-500.0,0.00033698,6]
[327832625,1716528652679,-555.44214024,0.00033698,6]
[327832626,1716528652688,-500.0,0.00033698,6]
[327832627,1716528652697,-473.77014297,0.00033698,6]
[327832628,1716528652863,-457.0,0.00033361,5]
[327832629,1716528652873,-26.22985703,0.00033698,6]
[327832630,1716528652884,-336.08809947,0.00033698,6]
[327832631,1716528652970,-163.91190053,0.00033698,6]
[327832632,1716528652979,-340.04811484,0.00033698,6]
[327832633,1716528653018,150.0,7.173e-05,2]
[327832634,1716528653041,5.0,7.173e-05,2]
[327832635,1716528653353,145.0,7.607e-05,2]
[327832636,1716528653375,169.13285556,7.607e-05,2]
[327832637,1716528653531,70.88300833,8e-05,2]
[327832638,1716528653553,4529.90011137,8e-05,2]
[327832639,1716528653599,-524.26159263,8.007e-05,2]
[327832640,1716528653612,-34855.5752785,8.007e-05,2]
[327832641,1716528653621,-411.21388374,8.007e-05,2]
[327832642,1716528653631,-2230.57703297,8.007e-05,2]
[327832643,1716528653641,-266.42845884,8.007e-05,2]
[327832644,1716528653650,-624.01902801,8.007e-05,2]
[327832645,1716528653659,-155.0,8.007e-05,2]
[327832646,1716528653669,-3286.97999917,8.007e-05,2]
[327832647,1716528653678,-263.25204484,8.007e-05,2]
[327832648,1716528653688,-43334.51245494,8.007e-05,2]
[327832649,1716528653697,-155.0,8.007e-05,2]
[327832650,1716528653707,-686.78764601,8.007e-05,2]
[327832651,1716528653716,-306.53561288,8.007e-05,2]
[327832652,1716528653725,-321.96055433,8.007e-05,2]
[327832653,1716528653734,-205.71073722,0.0001,2]
[327832654,1716528653744,-1061.0,0.00029014,2]
[327832655,1716528653753,-1061.0,0.00032014,2]
[327832656,1716528653763,-50000.0,0.00032876,2]
[327832657,1716528653772,-5295.88979941,0.00033696,4]
[327832658,1716528653782,-720.42750279,0.00033696,4]
[327832659,1716528653791,-431.24414305,0.00033696,4]
[327832660,1716528653801,-4798.84559116,0.00033696,4]
[327832661,1716528653810,-694.12591649,0.00033697,4]
[327832662,1716528653819,-5955.00638523,0.00033697,4]
[327832663,1716528653829,-334.34693533,0.00033697,4]
[327832664,1716528653839,-162.59574858,0.00033697,4]
[327832665,1716528653848,-324.56506678,0.00033697,4]
[327832666,1716528653858,-155.0,0.00033697,4]
[327832667,1716528653867,-159.95188516,0.00033698,6]
[327832668,1716528653876,-500.0,0.00033698,6]
[327832669,1716528653887,-500.0,0.00033698,6]
[327832670,1716528653897,-500.0,0.00033698,6]
[327832671,1716528654027,-391.18100499,0.00033698,6]
[327832672,1716528654037,-500.0,0.00033698,6]
[327832673,1716528654049,-500.0,0.00033698,6]
[327832674,1716528654060,-500.0,0.00033698,6]
[327832675,1716528654070,-500.0,0.00033698,6]
[327832676,1716528654080,-500.0,0.00033698,6]
[327832677,1716528654090,-500.0,0.00033698,6]
[327832678,1716528654100,-500.0,0.00033698,6]
[327832679,1716528654109,-500.0,0.00033698,6]
[327832680,1716528654119,-448.53893276,0.00033698,6]
[327832681,1716528654129,-500.0,0.00033698,6]
[327832682,1716528654139,-500.0,0.00033698,6]
[327832683,1716528654148,-500.0,0.00033698,6]
[327832684,1716528654158,-500.0,0.00033698,6]
[327832685,1716528654168,-500.0,0.00033698,6]
[327832686,1716528654177,-500.0,0.00033698,6]
[327832687,1716528654187,-500.0,0.00033698,6]
[327832688,1716528654196,-500.0,0.00033698,6]
[327832689,1716528654206,-500.0,0.00033698,6]
[327832690,1716528654216,-500.0,0.00033698,6]
[327832691,1716528654225,-500.0,0.00033698,6]
[327832692,1716528654235,-536.24338825,0.00033698,6]
[327832693,1716528654245,-500.0,0.00033698,6]
[327832694,1716528654255,-500.0,0.00033698,6]
[327832695,1716528654265,-519.61818764,0.00033698,6]
[327832696,1716528654275,-609.89225452,0.00033698,6]
[327832697,1716528654284,-500.0,0.00033698,6]
[327832698,1716528654293,-640.98319092,0.00033698,6]
[327832699,1716528654303,-500.0,0.00033698,6]
[327832700,1716528654313,-500.0,0.00033698,6]
[327832701,1716528654323,-534.36324587,0.00033698,6]
[327832702,1716528654333,-500.0,0.00033698,6]
[327832703,1716528654343,-500.0,0.00033698,6]
[327832704,1716528654353,-500.0,0.00033698,6]
[327832705,1716528654362,-514.64439001,0.00033698,6]
[327832706,1716528654372,-500.0,0.00033698,6]
[327832707,1716528654384,-500.0,0.00033698,6]
[327832708,1716528654393,-500.0,0.00033698,6]
[327832709,1716528654403,-435.57608799,0.00033698,6]
[327832710,1716528654412,-500.0,0.00033698,6]
[327832711,1716528654421,-500.0,0.00033698,6]
[327832712,1716528654430,-500.0,0.00033698,6]
[327832713,1716528654440,-500.0,0.00033698,6]
[327832714,1716528654449,-500.0,0.00033698,6]
[327832715,1716528654458,-500.0,0.00033698,6]
[327832716,1716528654467,-500.0,0.00033698,6]
[327832717,1716528654476,-513.53247959,0.00033698,6]
[327832718,1716528654489,-500.0,0.00033698,6]
[327832719,1716528654499,-500.0,0.00033698,6]
[327832720,1716528654508,-500.0,0.00033698,6]
[327832721,1716528654518,-524.44019185,0.00033698,6]
[327832722,1716528654527,-500.0,0.00033698,6]
[327832723,1716528654537,-500.0,0.00033698,6]
[327832724,1716528654546,-500.0,0.00033698,6]
[327832725,1716528654556,-500.0,0.00033698,6]
[327832726,1716528654565,-500.0,0.00033698,6]
[327832727,1716528654574,-500.0,0.00033698,6]
[327832728,1716528654584,-269.98429257,0.00033698,6]
[327832729,1716528654593,-500.0,0.00033698,6]
[327832730,1716528654603,-500.0,0.00033698,6]
[327832731,1716528654612,-500.0,0.00033698,6]
[327832732,1716528654621,-500.0,0.00033698,6]
[327832733,1716528654631,-500.0,0.00033698,6]
[327832734,1716528654640,-185.23038684,0.00033698,6]
[327832735,1716528654650,-500.0,0.00033698,6]
[327832736,1716528654660,-500.0,0.00033698,6]
[327832737,1716528654670,-500.0,0.00033698,6]
[327832738,1716528654680,-524.56665978,0.00033698,6]
[327832739,1716528654689,-500.0,0.00033698,6]
[327832740,1716528654698,-500.0,0.00033698,6]
[327832741,1716528654708,-500.0,0.00033698,6]
[327832742,1716528654717,-500.0,0.00033698,6]
[327832743,1716528654726,-500.0,0.00033698,6]
[327832744,1716528654736,-500.0,0.00033698,6]
[327832745,1716528654745,-500.0,0.00033698,6]
[327832746,1716528654755,-500.0,0.00033698,6]
[327832747,1716528654765,-641.15688586,0.00033698,6]
[327832748,1716528654774,-500.0,0.00033698,6]
[327832749,1716528654784,-515.68660031,0.00033698,6]
[327832750,1716528654793,-500.0,0.00033698,6]
[327832751,1716528654804,-500.0,0.00033698,6]
[327832752,1716528654813,-500.0,0.00033698,6]
[327832753,1716528654823,-500.0,0.00033698,6]
[327832754,1716528654832,-500.0,0.00033698,6]
[327832755,1716528654842,-500.0,0.00033698,6]
[327832756,1716528654851,-500.0,0.00033698,6]
[327832757,1716528654860,-500.0,0.00033698,6]
[327832758,1716528654870,-500.0,0.00033698,6]
[327832759,1716528654880,-470.7823839,0.00033698,6]
[327832760,1716528654889,-500.0,0.00033698,6]
[327832761,1716528654899,-243.53,0.00033698,6]
[327832762,1716528654908,-500.0,0.00033698,6]
[327832763,1716528654918,-500.0,0.00033698,6]
[327832764,1716528654927,-500.0,0.00033698,6]
[327832765,1716528654936,-500.0,0.00033698,6]
[327832766,1716528654946,-500.0,0.00033698,6]
[327832767,1716528654956,-500.0,0.00033698,6]
[327832768,1716528654968,-500.0,0.00033698,6]
[327832769,1716528654978,-500.0,0.00033698,6]
[327832770,1716528654988,-500.0,0.00033698,6]
[327832771,1716528654998,-500.0,0.00033698,6]
[327832772,1716528655010,-500.0,0.00033698,6]
[327832773,1716528655019,-500.0,0.00033698,6]
[327832774,1716528655029,-500.0,0.00033698,6]
[327832775,1716528655038,-532.48283835,0.00033698,6]
[327832776,1716528655050,-500.0,0.00033698,6]
[327832777,1716528655059,-500.0,0.00033698,6]
[327832778,1716528655069,-500.0,0.00033698,6]
[327832779,1716528655078,-640.19603152,0.00033698,6]
[327832780,1716528655087,-518.25220642,0.00033698,6]
[327832781,1716528655097,-500.0,0.00033698,6]
[327832782,1716528655106,-500.0,0.00033698,6]
[327832783,1716528655116,-500.0,0.00033698,6]
[327832784,1716528655125,-500.0,0.00033698,6]
[327832785,1716528655135,-500.0,0.00033698,6]
[327832786,1716528655146,-500.0,0.00033698,6]
[327832787,1716528655155,-500.0,0.00033698,6]
[327832788,1716528655165,-500.0,0.00033698,6]
[327832789,1716528655174,-294.19863053,0.00033698,6]
[327832790,1716528655184,-469.33234483,0.00033698,6]
[327832791,1716528655194,-540.8475868,0.00033698,6]
[327832792,1716528655203,-500.0,0.00033698,6]
[327832793,1716528655213,-500.0,0.00033698,6]
[327832794,1716528655222,-500.0,0.00033698,6]
[327832795,1716528655232,-500.0,0.00033698,6]
[327832796,1716528655242,-500.0,0.00033698,6]
[327832797,1716528655251,-500.0,0.00033698,6]
[327832798,1716528655261,-500.0,0.00033698,6]
[327832799,1716528655270,-500.0,0.00033698,6]
[327832800,1716528655280,-612.74764148,0.00033698,6]
[327832801,1716528655289,-500.0,0.00033698,6]
[327832802,1716528655298,-500.0,0.00033698,6]
[327832803,1716528655308,-500.0,0.00033698,6]
[327832804,1716528655317,-500.0,0.00033698,6]
[327832805,1716528655326,-500.0,0.00033698,6]
[327832806,1716528655336,-526.8199611,0.00033698,6]
[327832807,1716528655345,-523.48075101,0.00033698,6]
[327832808,1716528655355,-150.0,0.00033698,6]
[327832809,1716528655365,-150.0,0.00033698,6]
[327832810,1716528655374,-150.0,0.00033698,6]
[327832811,1716528655384,-150.0,0.00033698,6]
[327832812,1716528655393,-150.0,0.00033698,6]
[327832813,1716528655402,-273.97020818,0.00033698,6]